bitfinex-derivatives/quotes_BNBF0:USTF0_20250807
["timestamp","ask_amount","ask_price","bid_price","bid_amount"]
[1754561968131,0.87052072,772.96,772.11,0.85394579]
[1754561968328,0.87052072,772.96,772.1,0.85394579]
[1754561968730,0.87052072,772.97,772.11,0.85394579]
[1754561969031,0.87052072,772.96,772.1,0.85394579]
[1754561969939,0.87052072,772.95,772.08,0.85394579]
[1754561970134,0.87052072,773.2,771.92,0.85394579]
[1754561970434,0.87052072,772.69,771.71,0.85394579]
[1754561970629,0.87052072,772.67,771.69,0.85394579]
[1754561970829,0.87052072,772.66,771.68,0.85394579]
[1754561971333,0.87052072,772.69,771.66,0.85394579]
[1754561972330,0.87052072,772.73,771.65,0.85394579]
[1754561972631,0.87052072,772.72,771.65,0.85394579]
[1754561973234,0.87052072,772.72,771.64,0.85394579]
[1754561973434,0.87052072,772.75,771.64,0.85394579]
[1754561974432,0.87052072,772.77,771.63,0.85394579]
[1754561975235,0.87052072,772.79,771.62,0.85394579]
[1754561976037,0.87052072,772.71,771.54,0.85394579]
[1754561976238,0.87052072,772.62,771.6,0.85394579]
[1754561976438,0.87052072,772.69,771.68,0.85394579]
[1754561976835,0.87052072,772.7,771.68,0.85394579]
[1754561977239,0.87052072,772.69,771.67,0.85394579]
[1754561977440,0.87052072,772.7,771.66,0.85394579]
[1754561977635,1.313,773.24,770.75,2.8683652]
[1754561977636,0.87052072,772.81,771.6,0.85394579]
[1754561977836,0.87052072,772.89,771.68,0.85394579]
[1754561978041,0.87052072,772.88,771.67,0.85394579]
[1754561978238,0.87052072,772.89,771.67,0.85394579]
[1754561979038,1.1426677,773.11,771.67,0.85394579]
[1754561979039,0.87052072,772.9,771.67,0.85394579]
[1754561980345,0.87052072,772.91,771.67,0.85394579]
[1754561980544,0.87052072,772.9,771.64,0.85394579]
[1754561980745,0.87052072,772.9,771.65,0.85394579]
[1754561981143,0.87052072,772.89,771.64,0.85394579]
[1754561981342,0.87052072,772.9,771.64,0.85394579]
[1754561981545,2.8792851,774.21,770.4,0.22505772]
[1754561981546,0.87052072,772.88,771.62,0.85394579]
[1754561982141,0.87052072,772.87,771.62,0.85394579]
[1754561982345,0.87052072,772.88,771.62,0.85394579]
[1754561983445,0.87052072,772.93,771.61,0.85394579]
[1754561983742,0.87052072,772.97,771.64,0.85394579]
[1754561984045,0.87052072,772.96,771.64,0.85394579]
[1754561984246,0.87052072,772.98,771.62,0.85394579]
[1754561984446,0.87052072,772.92,771.55,0.85394579]
[1754561984747,0.87052072,772.93,771.55,0.85394579]
[1754561984946,0.87052072,772.92,771.55,0.85394579]
[1754561985147,0.87052072,772.93,771.55,0.85394579]
[1754561986544,0.87052072,772.94,771.55,0.85394579]
[1754561986948,0.87052072,772.94,771.54,0.85394579]
[1754561987150,0.87052072,772.94,771.55,0.85394579]
[1754561990751,0.87052072,772.92,771.56,0.85394579]
[1754561991153,0.87052072,772.86,771.61,0.85394579]
[1754561991552,0.87052072,772.86,771.6,0.85394579]
[1754561991754,0.87052072,772.85,771.6,0.85394579]
[1754561991954,0.87052072,772.85,771.59,0.85394579]
[1754561992450,0.87052072,772.82,771.57,0.85394579]
[1754561992752,0.87052072,772.81,771.58,0.85394579]
[1754561992952,0.87052072,772.72,771.55,0.85394579]
[1754561993352,0.87052072,772.73,771.55,0.85394579]
[1754561993951,0.87052072,772.73,771.38,1.147346]
[1754561993952,0.87052072,772.7,771.57,0.85394579]
[1754561994356,0.87052072,772.71,771.57,0.85394579]
[1754561996758,0.87052072,772.71,771.26,1.7210191]
[1754561996759,0.87052072,772.69,771.58,0.85394579]
[1754561996957,0.87052072,772.7,771.58,0.85394579]
[1754561997157,0.87052072,772.67,771.59,0.85394579]
[1754561997860,0.87052072,772.63,771.55,0.85394579]
[1754561998053,0.87052072,772.61,771.53,0.85394579]
[1754561998255,1.1426677,772.75,771.53,0.85394579]
[1754561998256,0.87052072,772.62,771.53,0.85394579]
[1754561999156,0.87052072,772.69,771.48,0.85394579]
[1754561999863,0.87052072,772.71,771.5,0.85394579]
[1754562000954,0.87052072,772.7,771.49,0.85394579]
[1754562001254,0.87052072,772.71,771.48,0.85394579]
[1754562001460,0.87052072,772.71,771.31,1.147346]
[1754562001461,0.87052072,772.73,771.47,0.85394579]
[1754562001656,0.87052072,772.72,771.47,0.85394579]
[1754562002155,0.87052072,772.73,771.47,0.85394579]
[1754562002960,0.87052072,772.76,771.45,0.85394579]
[1754562003557,0.87052072,772.74,771.45,0.85394579]
[1754562003754,0.87052072,772.74,771.44,0.85394579]
[1754562004560,0.87052072,772.75,771.44,0.85394579]
[1754562005354,0.87052072,772.76,771.42,0.85394579]
[1754562005555,1.09582104,772.77,771.41,0.85394579]
[1754562005762,1.161,772.75,771.42,0.85394579]
[1754562006258,2.03152072,772.75,771.4,0.85394579]
[1754562006761,0.87052072,772.7,771.36,0.85394579]
[1754562007163,0.87052072,772.71,771.35,0.85394579]
[1754562007369,1.161,772.75,770.94,0.22530032]
[1754562007370,0.87052072,772.68,771.32,0.85394579]
[1754562007666,0.87052072,772.56,771.37,0.85394579]
[1754562007868,0.87052072,772.55,771.36,0.85394579]
[1754562008066,0.87052072,772.54,771.35,0.85394579]
[1754562008271,0.87052072,772.49,771.28,0.85394579]
[1754562008571,0.87052072,772.47,771.29,0.85394579]
[1754562009267,0.87052072,772.47,771.3,0.85394579]
[1754562009466,0.87052072,772.47,771.29,0.85394579]
[1754562009666,2.888571,772.75,771.25,0.85394579]
[1754562009667,0.87052072,772.43,771.25,0.85394579]
[1754562009870,0.87052072,772.38,771.2,0.85394579]
[1754562010269,0.87052072,772.38,771.17,0.85394579]
[1754562010773,0.87052072,772.34,771.13,0.85394579]
[1754562011073,0.87052072,772.34,771.12,0.85394579]
[1754562011271,0.87052072,772.33,771.08,0.85394579]
[1754562012073,0.87052072,772.39,771.04,0.85394579]
[1754562012274,0.87052072,772.42,771.03,0.85394579]
[1754562012572,0.87052072,772.34,770.95,0.85394579]
[1754562013171,0.87052072,772.36,770.94,1.07924611]
[1754562013575,0.87052072,772.37,770.94,1.07924611]
[1754562014277,0.87052072,772.39,770.94,0.22530032]
[1754562015273,0.87052072,772.41,770.94,0.22530032]
[1754562016175,0.87052072,772.42,770.94,0.22530032]
[1754562016480,0.87052072,772.43,770.94,0.22530032]
[1754562016976,0.87052072,772.47,770.94,1.07924611]
[1754562017180,0.87052072,772.49,770.94,1.07924611]
[1754562017580,0.87052072,772.52,770.97,0.85394579]
[1754562018276,0.87052072,772.53,770.96,0.85394579]
[1754562019279,0.87052072,772.52,770.97,0.85394579]
[1754562020282,0.87052072,772.53,770.96,0.85394579]
[1754562020480,1.161,772.75,770.97,0.85394579]
[1754562020481,0.87052072,772.51,770.97,0.85394579]
[1754562020980,0.87052072,772.5,770.94,1.07924611]
[1754562021979,0.87052072,772.49,770.94,0.22530032]
[1754562022283,0.87052072,772.47,770.94,0.22530032]
[1754562023180,0.87052072,772.48,770.94,0.22530032]
[1754562023383,0.87052072,772.46,770.94,0.22530032]
[1754562024084,0.87052072,772.45,770.94,0.22530032]
[1754562024284,0.87052072,772.42,770.94,0.22530032]
[1754562024884,0.87052072,772.41,770.94,1.07924611]
[1754562025181,0.87052072,772.42,770.94,0.22530032]
[1754562025480,0.87052072,772.39,770.95,0.85394579]
[1754562026184,0.87052072,772.39,770.94,0.22530032]
[1754562026185,0.87052072,772.41,770.94,0.22530032]
[1754562026382,0.87052072,772.39,770.94,0.22530032]
[1754562026684,0.87052072,772.36,770.94,0.22530032]
[1754562027385,0.87052072,772.35,770.94,0.22530032]
[1754562028187,0.87052072,772.36,770.94,0.22530032]
[1754562028386,0.87052072,772.34,770.94,0.22530032]
[1754562028582,0.87052072,772.35,770.94,0.22530032]
[1754562029086,0.87052072,772.34,770.94,0.22530032]
[1754562029284,0.87052072,772.33,770.94,0.22530032]
[1754562029485,0.87052072,772.34,770.94,0.22530032]
[1754562029785,0.87052072,772.33,770.94,0.22530032]
[1754562029986,0.87052072,772.27,770.94,0.22530032]
[1754562030181,0.87052072,772.26,770.94,0.22530032]
[1754562030482,0.87052072,772.25,770.94,0.22530032]
[1754562031186,0.87052072,772.26,770.94,0.22530032]
[1754562031489,0.87052072,772.25,770.94,0.22530032]
[1754562032289,0.22530032,772.77,770.94,0.22530032]
[1754562032290,0.87052072,772.19,770.94,0.22530032]
[1754562032587,0.87052072,772.12,770.94,0.22530032]
[1754562033091,0.87052072,772.1,770.94,0.22530032]
[1754562033291,0.87052072,772.11,770.94,0.22530032]
[1754562034087,0.87052072,772.12,770.94,0.22530032]
[1754562035086,0.87052072,772.13,770.94,0.22530032]
[1754562036086,0.87052072,772.12,770.94,0.22530032]
[1754562036290,0.87052072,772.14,770.94,0.22530032]
[1754562036790,0.22530032,772.77,770.94,0.22530032]
[1754562036791,0.87052072,772.12,770.94,0.22530032]
[1754562036990,0.87052072,772.09,770.94,0.22530032]
[1754562037190,0.87052072,772.1,770.94,0.22530032]
[1754562038289,0.87052072,772.11,770.94,0.22530032]
[1754562038787,0.87052072,772.12,770.94,0.22530032]
[1754562038988,1.374,772.1,770.94,0.22530032]
[1754562044095,1.374,772.1,770.95,0.85394579]
[1754562044599,1.374,772.1,770.96,0.85394579]
[1754562045198,1.374,772.1,770.97,0.85394579]
[1754562045500,1.374,772.1,770.98,0.85394579]
[1754562045798,1.374,772.1,770.97,0.85394579]
[1754562045995,1.374,772.1,770.98,0.85394579]
[1754562046596,1.374,772.1,770.94,0.22530032]
[1754562046597,1.374,772.1,770.97,0.85394579]
[1754562046795,1.374,772.1,770.96,0.85394579]
[1754562047401,1.374,772.1,770.97,0.85394579]
[1754562047802,1.374,772.1,770.98,0.85394579]
[1754562048003,1.374,772.1,770.94,0.22530032]
[1754562051603,1.374,772.1,770.99,0.85394579]
[1754562051807,1.374,772.1,771.0,0.85394579]
[1754562052007,1.374,772.1,771.03,0.85394579]
[1754562052303,1.374,772.1,771.08,0.85394579]
[1754562052507,1.374,772.1,771.09,0.85394579]
[1754562052807,1.374,772.1,771.23,0.85394579]
[1754562053004,1.374,772.1,771.34,0.85394579]
[1754562053306,1.374,772.1,771.37,0.85394579]
[1754562053507,1.374,772.1,771.4,0.85394579]
[1754562053903,1.374,772.1,771.46,0.85394579]
[1754562054108,1.374,772.1,771.45,0.85394579]
[1754562054602,1.374,772.1,771.44,0.85394579]
[1754562055306,1.374,772.1,771.45,0.85394579]
[1754562055503,1.374,772.1,771.4,0.85394579]
[1754562055708,1.374,772.1,771.35,0.85394579]
[1754562056304,1.374,772.1,770.94,0.22530032]
[1754562056305,1.374,772.1,771.36,0.85394579]
[1754562058102,1.374,772.1,771.37,0.85394579]
[1754562059109,1.374,772.1,771.38,0.85394579]
[1754562059309,1.374,772.1,771.39,0.85394579]
[1754562059610,1.374,772.1,771.38,0.85394579]
[1754562059805,1.374,772.1,771.39,0.85394579]
[1754562060004,1.374,772.1,771.33,0.85394579]
[1754562060406,1.374,772.1,771.29,0.85394579]
[1754562060606,1.374,772.1,771.28,0.85394579]
[1754562060811,1.374,772.1,771.22,0.85394579]
[1754562061214,1.374,772.1,771.2,0.85394579]
[1754562063011,1.374,772.1,771.18,0.85394579]
[1754562063211,1.374,772.1,771.19,0.85394579]
[1754562064011,1.374,772.1,771.18,0.85394579]
[1754562065111,1.374,772.1,771.19,0.85394579]
[1754562066214,1.374,772.1,771.2,0.85394579]
[1754562066418,1.374,772.1,771.19,0.85394579]
[1754562068317,1.374,772.1,771.18,0.85394579]
[1754562068819,1.374,772.1,771.13,0.85394579]
[1754562069320,1.374,772.1,771.16,0.85394579]
[1754562069916,0.87052072,772.27,771.22,0.85394579]
[1754562070722,0.87052072,772.28,771.22,0.85394579]
[1754562070922,0.87052072,772.28,771.04,1.147346]
[1754562070923,0.87052072,772.26,771.23,0.85394579]
[1754562071123,0.87052072,772.25,771.24,0.85394579]
[1754562071323,0.87052072,772.3,771.2,0.85394579]
[1754562072024,0.87052072,772.3,771.19,0.85394579]
[1754562072224,0.87052072,772.29,771.19,0.85394579]
[1754562072624,0.87052072,772.28,771.19,0.85394579]
[1754562072822,0.87052072,772.14,771.16,0.85394579]
[1754562073022,0.87052072,772.15,771.15,0.85394579]
[1754562073220,0.87052072,772.12,771.14,0.85394579]
[1754562073425,0.87052072,772.09,771.11,0.85394579]
[1754562073925,0.87052072,772.04,771.06,0.85394579]
[1754562074120,0.87052072,771.97,770.98,0.85394579]
[1754562074322,0.87052072,771.96,770.98,0.85394579]
[1754562075522,0.87052072,771.96,770.94,0.22530032]
[1754562075523,1.122,772.14,770.94,0.22530032]
[1754562076328,1.122,772.14,770.94,1.07924611]
[1754562077031,1.122,772.14,770.96,0.85394579]
[1754562077230,1.122,772.14,770.97,0.85394579]
[1754562077936,1.122,772.14,771.0,0.85394579]
[1754562078334,1.122,772.14,770.98,0.85394579]
[1754562078831,1.122,772.14,771.22,0.85394579]
[1754562079032,1.122,772.14,771.16,0.85394579]
[1754562080035,1.122,772.14,771.14,0.85394579]
[1754562081034,1.122,772.14,771.1,0.85394579]
[1754562081231,1.122,772.14,770.94,0.22530032]
[1754562081232,1.122,772.14,771.04,0.85519889]
[1754562082633,1.122,772.14,771.07,0.85519889]
[1754562083334,1.122,772.14,770.94,0.22530032]
[1754562083335,1.122,772.14,771.11,0.85519889]
[1754562083931,1.122,772.14,771.13,0.85519889]
[1754562084436,1.122,772.14,770.94,0.22530032]
[1754562084437,1.122,772.14,771.14,0.85519889]
[1754562085936,1.122,772.14,771.15,0.85519889]
[1754562089442,1.122,772.14,771.18,0.85519889]
[1754562089938,1.122,772.14,771.19,0.85519889]
[1754562092940,1.122,772.14,771.2,0.85519889]
[1754562093140,1.122,772.14,771.23,0.85519889]
[1754562093638,1.122,772.14,771.0,1.147346]
[1754562093639,1.122,772.14,771.24,0.85519889]
[1754562094739,1.122,772.14,771.23,0.85519889]
[1754562094945,1.122,772.14,771.22,0.85519889]
[1754562095246,1.122,772.14,771.23,0.85519889]
[1754562095542,1.122,772.14,771.15,0.85519889]
[1754562096045,1.122,772.14,771.12,0.85519889]
[1754562097247,1.122,772.14,771.1,0.85519889]
[1754562097546,1.122,772.14,770.94,0.22530032]
[1754562097547,1.122,772.14,771.13,0.85519889]
[1754562097742,1.122,772.14,771.08,0.85519889]
[1754562097946,1.122,772.14,771.27,0.85519889]
[1754562098148,1.122,772.14,771.28,0.85519889]
[1754562100346,1.122,772.14,771.29,0.85519889]
[1754562102148,1.122,772.14,771.32,0.85519889]
[1754562102449,1.122,772.14,771.34,0.85519889]
[1754562102849,1.122,772.14,771.35,0.85519889]
[1754562103947,1.122,772.14,770.94,0.22530032]
[1754562103948,1.122,772.14,771.36,0.85519889]
[1754562104144,1.122,772.14,771.37,0.85519889]
[1754562104449,1.122,772.14,771.43,0.85519889]
[1754562104645,1.122,772.14,771.41,0.85519889]
[1754562104849,1.122,772.14,771.4,0.85519889]
[1754562105450,0.86880787,772.47,771.4,0.85519889]
[1754562105749,0.86880787,772.48,771.41,0.85519889]
[1754562108052,0.86880787,772.49,771.41,0.85519889]
[1754562108455,0.86880787,772.48,771.41,0.85519889]
[1754562108753,0.86880787,772.46,771.43,0.85519889]
[1754562110352,0.86880787,772.46,771.44,0.85519889]
[1754562111854,0.86880787,772.46,771.43,0.85519889]
[1754562113758,0.86880787,772.45,771.43,0.85519889]
[1754562114057,0.86880787,772.46,771.43,0.85519889]
[1754562114257,0.86880787,772.47,771.42,0.85519889]
[1754562114554,0.86880787,772.43,771.44,0.85519889]
[1754562114958,0.859,772.42,771.44,0.85519889]
[1754562115159,1.72780787,772.42,771.45,0.85519889]
[1754562115358,1.72780787,772.42,771.44,0.85519889]
[1754562115761,1.72780787,772.42,771.45,0.85519889]
[1754562116061,0.859,772.42,771.44,0.85519889]
[1754562116361,0.859,772.42,771.43,0.85519889]
[1754562116661,0.859,772.42,771.45,0.85519889]
[1754562116859,0.859,772.42,771.34,0.85519889]
[1754562120163,0.859,772.42,771.35,0.85519889]
[1754562120859,0.859,772.42,771.34,0.85519889]
[1754562121463,0.859,772.42,771.35,0.85519889]
[1754562121763,0.859,772.42,771.34,0.85519889]
[1754562124763,0.859,772.42,771.35,0.85519889]
[1754562126264,0.859,772.42,771.34,0.85519889]
[1754562126567,0.859,772.42,771.35,0.85519889]
[1754562126768,0.859,772.42,771.41,0.85519889]
[1754562129471,0.859,772.42,771.46,0.85519889]
[1754562130069,1.72780787,772.42,771.46,0.85519889]
[1754562130268,0.859,772.42,771.46,0.85519889]
[1754562131473,1.72780787,772.42,771.46,0.85519889]
[1754562131674,1.72780787,772.42,771.1,1.7210191]
[1754562131675,0.86880787,772.4,771.48,0.85519889]
[1754562133274,0.86880787,772.39,771.48,0.85519889]
[1754562133574,0.86880787,772.4,771.48,0.85519889]
[1754562133872,0.86880787,772.38,771.5,0.85519889]
[1754562134273,0.86880787,772.36,771.5,0.85519889]
[1754562134471,0.86880787,772.36,771.51,0.85519889]
[1754562134879,0.86880787,772.39,771.48,0.85519889]
[1754562135378,0.86880787,772.37,771.5,0.85519889]
[1754562135580,0.859,772.42,771.43,0.85519889]
[1754562136178,0.859,772.42,771.54,0.85519889]
[1754562137179,0.859,772.42,771.55,0.85519889]
[1754562137380,0.859,772.42,771.54,0.85519889]
[1754562137677,0.859,772.42,771.55,0.85519889]
[1754562138483,0.859,772.42,771.09,1.7210191]
[1754562138676,0.859,772.42,770.94,0.22530032]
[1754562154189,0.22530032,772.77,770.94,0.22530032]
[1754562168509,0.87074225,772.28,771.18,0.85695239]
[1754562169211,0.87074225,772.33,771.22,0.85695239]
[1754562169812,0.87074225,772.3,771.24,0.85695239]
[1754562170107,0.87074225,772.31,771.24,0.85695239]
[1754562170413,0.87074225,772.27,771.27,0.85695239]
[1754562170613,0.87074225,772.27,771.26,0.85695239]
[1754562171809,0.87074225,772.26,771.27,0.85695239]
[1754562172415,0.87074225,772.25,771.27,0.85695239]
[1754562172912,0.87074225,772.25,771.28,0.85695239]
[1754562175518,1.286,772.24,771.28,0.85695239]
[1754562179120,1.286,772.24,771.29,0.85695239]
[1754562179725,1.286,772.24,771.28,0.85695239]
[1754562180924,1.286,772.24,771.32,0.85695239]
[1754562181625,1.286,772.24,771.33,0.85695239]
[1754562184224,1.286,772.24,771.34,0.85695239]
[1754562184424,1.286,772.24,771.33,0.85695239]
[1754562185628,1.286,772.24,771.32,0.85695239]
[1754562186530,1.286,772.24,771.33,0.85695239]
[1754562186727,1.286,772.24,771.39,0.85695239]
[1754562186930,1.286,772.24,771.38,0.85695239]
[1754562187227,1.286,772.24,771.39,0.85695239]
[1754562188331,1.286,772.24,771.4,0.85695239]
[1754562191328,1.286,772.24,771.43,0.85695239]
[1754562192530,1.286,772.24,771.46,0.85695239]
[1754562193134,2.15674225,772.24,771.48,0.85695239]
[1754562193434,0.87074225,772.23,771.48,0.85695239]
[1754562195631,0.87074225,772.23,771.49,0.85695239]
[1754562195836,0.87074225,772.22,771.49,0.85695239]
[1754562196136,0.87074225,772.21,771.49,0.85695239]
[1754562196534,1.286,772.24,771.39,0.85695239]
[1754562196736,1.286,772.24,771.31,0.85695239]
[1754562196936,1.286,772.24,771.3,0.85695239]
[1754562197532,1.286,772.24,771.31,0.85695239]
[1754562197732,1.286,772.24,771.3,0.85695239]
[1754562198238,1.286,772.24,771.31,0.85695239]
[1754562198633,1.286,772.24,771.32,0.85695239]
[1754562199240,1.286,772.24,771.33,0.85695239]
[1754562199439,1.286,772.24,771.11,1.1426031]
[1754562199440,0.87074225,772.19,771.38,0.85695239]
[1754562199645,0.87074225,772.2,771.36,0.85695239]
[1754562200244,0.87074225,772.18,771.36,0.85695239]
[1754562200740,0.87074225,772.17,771.36,0.85695239]
[1754562200940,0.87074225,772.15,771.35,0.85695239]
[1754562201344,0.87074225,772.14,771.35,0.85695239]
[1754562202340,0.87074225,772.16,771.34,0.85695239]
[1754562202540,0.87074225,772.15,771.34,0.85695239]
[1754562203646,0.87074225,772.14,771.34,0.85695239]
[1754562204340,0.87074225,772.14,771.35,0.85695239]
[1754562204540,0.87074225,772.13,771.35,0.85695239]
[1754562204741,0.87074225,772.12,771.36,0.85695239]
[1754562206041,0.87074225,772.12,771.35,0.85695239]
[1754562206341,0.87074225,772.12,771.36,0.85695239]
[1754562206640,0.87074225,772.12,771.35,0.85695239]
[1754562206846,0.87074225,772.14,771.35,0.85695239]
[1754562209747,0.87074225,772.14,771.36,0.85695239]
[1754562210145,0.87074225,772.19,771.33,0.85695239]
[1754562210647,0.87074225,772.25,771.4,0.85695239]
[1754562210949,0.87074225,772.27,771.4,0.85695239]
[1754562211147,0.87074225,772.3,771.43,0.85695239]
[1754562213749,0.87074225,772.28,771.41,0.85695239]
[1754562214446,0.87074225,772.29,771.41,0.85695239]
[1754562215253,0.87074225,772.28,771.4,0.85695239]
[1754562215752,0.87074225,772.3,771.4,0.85695239]
[1754562215953,0.87074225,772.29,771.4,0.85695239]
[1754562216450,0.87074225,772.48,771.4,0.85695239]
[1754562216654,0.87074225,772.52,771.44,0.85695239]
[1754562217353,0.87074225,772.52,771.42,0.85695239]
[1754562217750,0.87074225,772.51,771.41,0.85695239]
[1754562219255,0.87074225,772.58,771.48,0.85695239]
[1754562219556,0.87074225,772.55,771.5,0.85695239]
[1754562219753,0.87074225,772.55,771.23,1.1426031]
[1754562219754,0.87074225,772.53,771.51,0.85695239]
[1754562220455,0.87074225,772.52,771.51,0.85695239]
[1754562220754,0.87074225,772.49,771.53,0.85695239]
[1754562221050,0.87074225,772.49,771.6,0.85695239]
[1754562221253,0.87074225,772.5,771.6,0.85695239]
[1754562222460,0.87074225,772.5,771.59,0.85695239]
[1754562222660,0.87074225,772.5,771.6,0.85695239]
[1754562223361,0.87074225,772.5,771.59,0.85695239]
[1754562224660,0.87074225,772.49,771.58,0.85695239]
[1754562225364,0.87074225,772.5,771.58,0.85695239]
[1754562226264,0.87074225,772.42,771.63,0.85695239]
[1754562226464,0.87074225,772.42,771.62,0.85695239]
[1754562226764,0.87074225,772.38,771.58,0.85695239]
[1754562226963,0.87074225,772.36,771.56,0.85695239]
[1754562227659,0.87074225,772.31,771.58,0.85695239]
[1754562227865,0.87074225,772.28,771.56,0.85695239]
[1754562228064,0.87074225,772.26,771.55,0.85695239]
[1754562228564,0.87074225,772.26,771.56,0.85695239]
[1754562228860,0.87074225,772.27,771.56,0.85695239]
[1754562229462,0.87074225,772.28,771.55,0.85695239]
[1754562230968,0.22530542,772.82,771.54,0.85695239]
[1754562230969,0.87074225,772.31,771.54,0.85695239]
[1754562231369,0.87074225,772.35,771.58,0.85695239]
[1754562231670,0.87074225,772.36,771.58,0.85695239]
[1754562233572,0.87074225,772.34,771.56,0.85695239]
[1754562237974,0.87074225,772.33,771.56,0.85695239]
[1754562238569,0.87074225,772.34,771.55,0.85695239]
[1754562238970,0.87074225,772.38,771.54,0.85695239]
[1754562239273,0.87074225,772.39,771.53,0.85695239]
[1754562239472,0.87074225,772.39,771.54,0.85695239]
[1754562239671,0.87074225,772.38,771.54,0.85695239]
[1754562240274,0.87074225,772.38,771.53,0.85695239]
[1754562240970,0.87074225,772.38,771.54,0.85695239]
[1754562241373,0.87074225,772.38,771.53,0.85695239]
[1754562241874,0.87074225,772.39,771.54,0.85695239]
[1754562242175,0.87074225,772.38,771.53,0.85695239]
[1754562243774,0.87074225,772.39,771.53,0.85695239]
[1754562245286,0.87074225,772.38,771.52,0.85695239]
[1754562245781,0.87074225,772.36,771.5,0.85695239]
[1754562246286,0.87074225,772.36,771.51,0.85695239]
[1754562246484,0.87074225,772.36,771.5,0.85695239]
[1754562247084,0.87074225,772.37,771.5,0.85695239]
[1754562247282,0.87074225,772.36,771.5,0.85695239]
[1754562247681,1.7414845,772.72,771.5,0.85695239]
[1754562247682,0.87074225,772.37,771.5,0.85695239]
[1754562247893,0.87074225,772.38,771.44,0.85695239]
[1754562248086,0.87074225,772.32,771.39,0.85695239]
[1754562248286,0.87074225,772.32,771.38,0.85695239]
[1754562249887,0.87074225,772.34,771.36,0.85695239]
[1754562251484,0.87074225,772.32,771.38,0.85695239]
[1754562252083,0.87074225,772.32,771.12,0.22540466]
[1754562252084,0.87074225,772.33,771.37,0.85695239]
[1754562252294,0.87074225,772.29,771.39,0.85695239]
[1754562252490,0.87074225,772.25,771.36,0.85695239]
[1754562252684,0.87074225,772.21,771.31,0.85695239]
[1754562252887,0.87074225,772.19,771.33,0.85695239]
[1754562253192,0.87074225,772.1,771.25,0.85695239]
[1754562253390,0.87074225,772.11,771.24,0.85695239]
[1754562254491,0.87074225,772.11,771.23,0.85695239]
[1754562254991,0.22530542,772.82,771.12,0.22540466]
[1754562254992,0.87074225,772.13,771.25,0.85695239]
[1754562255393,0.87074225,772.14,771.25,0.85695239]
[1754562256097,0.87074225,772.14,771.12,0.22540466]
[1754562256098,0.87074225,772.13,771.26,0.85695239]
[1754562256290,0.87074225,772.13,771.25,0.85695239]
[1754562257393,0.87074225,772.14,771.25,0.85695239]
[1754562258796,0.87074225,772.13,771.26,0.85695239]
[1754562259393,0.87074225,772.13,771.25,0.85695239]
[1754562261292,0.87074225,772.11,771.23,0.85695239]
[1754562262796,0.87074225,772.06,771.26,0.85695239]
[1754562263394,0.87074225,772.1,771.24,0.85695239]
[1754562265397,0.87074225,772.11,771.23,0.85695239]
[1754562266098,0.87074225,772.11,771.24,0.85695239]
[1754562266295,0.87074225,772.11,771.23,0.85695239]
[1754562267497,0.87074225,772.15,771.21,0.85695239]
[1754562269402,0.87074225,772.15,771.2,0.85695239]
[1754562269902,0.861,772.17,771.19,0.85695239]
[1754562270800,0.861,772.17,771.18,0.85695239]
[1754562273204,0.861,772.17,771.17,0.85695239]
[1754562273402,0.861,772.17,771.16,0.85695239]
[1754562273706,0.861,772.17,771.12,1.08235705]
[1754562273707,0.87074225,772.13,771.12,1.08235705]
[1754562274301,0.87074225,772.04,771.12,0.22540466]
[1754562274502,0.87074225,772.01,771.12,0.22540466]
[1754562274703,0.87074225,771.97,771.12,0.22540466]
[1754562275104,0.87074225,771.96,771.12,0.22540466]
[1754562275303,0.87074225,771.98,771.12,0.22540466]
[1754562275506,0.87074225,771.97,771.12,0.22540466]
[1754562275701,0.87074225,771.96,771.12,0.22540466]
[1754562276507,0.87074225,771.97,771.12,0.22540466]
[1754562277307,0.87074225,771.98,771.12,0.22540466]
[1754562277508,0.87074225,771.99,771.12,0.22540466]
[1754562278505,0.87074225,772.0,771.12,0.22540466]
[1754562278709,0.861,772.17,771.12,0.22540466]
[1754562278710,0.87074225,772.02,771.12,0.22540466]
[1754562278910,0.87074225,772.1,771.12,0.22540466]
[1754562279105,0.87074225,772.13,771.12,0.22540466]
[1754562279309,0.87074225,772.12,771.12,0.22540466]
[1754562279507,0.861,772.17,771.12,0.22540466]
[1754562280108,1.73174225,772.17,771.12,0.22540466]
[1754562280307,0.87074225,772.15,771.12,0.22540466]
[1754562281206,0.87074225,772.16,771.12,0.22540466]
[1754562281406,0.87074225,772.12,771.12,0.22540466]
[1754562281610,0.87074225,772.11,771.12,0.22540466]
[1754562282204,0.87074225,772.1,771.12,0.22540466]
[1754562282407,0.87074225,772.11,771.12,0.22540466]
[1754562282907,0.861,772.17,771.12,0.22540466]